Cogmind - Beta 15 @@@ ROGUE MODE // 2025.05.22 @ 19:51:25 Player: Ciaphas Result: Destroyed by as-48604 with Assembled Heavy Rifle Performance ------------- Evolutions (0) 0 Regions Visited (2) 400 Robots Destroyed (16) 80 Value Destroyed (441) 441 Prototype IDs (0) 0 Alien Tech Used (0) 0 Bonus (0) 0 TOTAL SCORE: 921 Bonus ------- None Cogmind --------- Core Integrity 0/250 Matter 41/300 Energy 190/265 System Corruption 0% Temperature Cool (0) Movement Core (400) Ox7 Location -10/Mines Parts ------- > --- POWER (1) -------- Improved Ion Engine > --- PROPULSION (2) --- (None) > --- UTILITY (2) ------ Medium Storage Unit Structural Scanner > --- WEAPON (2) ------- Beam Cannon Grenade Launcher > --- INVENTORY (10) --- Aluminum Leg Large Storage Unit High-capacity Matter Pod (32) Targeting Computer ECM Suite Beam Cannon Beam Cannon Assault Rifle Assault Rifle Peak State ------------ > --- POWER ------------ Light Ion Engine > --- PROPULSION ------- Aluminum Leg Aluminum Leg > --- UTILITY ---------- Small Storage Unit Seismic Detector > --- WEAPON ----------- Light EM Pulse Cannon Light EM Pulse Cannon > --- INVENTORY -------- Ion Engine Assault Rifle Assault Rifle Assault Rifle Mining Laser [Rating: 9] Favorites ----------- Power Improved Ion Engine Engine Improved Ion Engine Propulsion Aluminum Leg Leg Aluminum Leg Utility Medium Storage Unit Device Structural Scanner Storage Medium Storage Unit Weapon Beam Cannon Energy Cannon Beam Cannon Ballistic Gun Assault Rifle Ballistic Cannon Light Cannon Launcher Grenade Launcher Build | -11 -10 -10 ------- Run | Yrd Mat Min Slots Evolved . | . . . Power . | . . . Propulsion . | . . . Utility . | . . . Weapon . | . . . Parts Attached 18 | 1 15 2 Power 4 | . 3 1 Engine 4 | . 3 1 Core . | . . . Reactor . | . . . Propulsion 4 | . 4 . Treads . | . . . Leg 4 | . 4 . Wheel . | . . . Hover . | . . . Flight . | . . . Utility 3 | 1 2 . Device 2 | 1 1 . Storage 1 | . 1 . Processor . | . . . Hackware . | . . . Protection . | . . . Artifact . | . . . Weapon 7 | . 6 1 Energy Gun . | . . . Energy Cannon 4 | . 4 . Ballistic Gun 1 | . 1 . Ballistic Cannon 1 | . 1 . Launcher 1 | . . 1 Special Weapon . | . . . Impact Weapon . | . . . Slashing Weapon . | . . . Piercing Weapon . | . . . Special Melee Weapon . | . . . Unidentified Prototypes . | . . . Parts Lost 3 | . . 3 Power 1 | . . 1 Propulsion 2 | . . 2 Utility . | . . . Weapon . | . . . Highest Loss Streak 3 | . . 3 To Critical Strikes 1 | . . 1 Average Backups 7 | 3 7 9 Power . | 1 1 . Propulsion . | 1 . 1 Utility 2 | . 2 4 Weapon 2 | 1 2 4 Tool/Special . | . . . Unused Backups 11 | . 3 8 Power . | . . . Propulsion 2 | . 1 1 Utility 5 | . 1 4 Weapon 4 | . 1 3 Tool/Special . | . . . Average Slot Usage (%) 97 | . 97 100 Engine 13 | . 13 14 Leg 27 | . 27 28 Device 13 | . 13 14 Storage 14 | . 14 14 Energy Cannon 14 | . 13 21 Ballistic Gun 7 | . 7 . Ballistic Cannon 5 | . 5 . Peak Build Rating 9 | 7 9 9 Average Rating 8 | 6 8 8 On Entrance 7 | 6 7 9 Naked Turns . | . . . Heaviest Build 24 | 13 24 24 Greatest Support 20 | 20 20 20 Greatest Overweight (x) 7 | . 7 1 Average Overweight (x) . | . . 1 Largest Inventory Capacity 10 | 8 10 10 Average Capacity 9 | 8 9 10 Most Carried 10 | 5 10 10 Average Carried 7 | 2 7 9 Final Capacity 10 | 8 10 10 Final Carried 10 | 3 10 9 Class Distribution -------------------- 100% | Mutant Dominant Class ---------------- Mutant | -10/Materials Mutant | -10/Mines Resources | -11 -10 -10 ----------- Run | Yrd Mat Min Matter Collected 525 | 222 303 . Remotely . | . . . Salvage Created 618 | 94 500 24 Parts 42 | 6 36 . Haulers Intercepted 1 | . 1 . Recyclers Shooed . | . . . Parts Field Recycled . | . . . Retrieved Matter . | . . . Parts Self-Destructed . | . . . Prevented . | . . . Kills | -11 -10 -10 ------- Run | Yrd Mat Min Combat Hostiles Destroyed 21 | . 10 11 Cannons 8 | . 8 . AOE 11 | . . 11 Classes Destroyed 8 | 2 5 1 Builder 1 | . 1 . Tunneler 1 | 1 . . Hauler 1 | . 1 . Recycler 1 | 1 . . Operator 1 | . 1 . Watcher 1 | . 1 . Grunt 10 | . 10 . Assembled 11 | . . 11 Best Kill Streak 11 | 2 2 11 Combat Bots Only 11 | . 2 11 Max Kills in Single Turn 4 | 1 1 4 Gunslinging . | . . . Exploded 4 | . . 4 Melee . | . . . Uniques/NPCs Destroyed . | . . . Combat | -11 -10 -10 -------- Run | Yrd Mat Min Hostile Shots Fired 87 | . 37 50 Missed 29 | . 12 17 Hits 58 | . 25 33 Melee 2 | . . 2 Projectile 56 | . 25 31 Critical Strikes 1 | . . 1 Damage Taken 871 | . 311 560 Core 257 | . 57 200 Absorbed by Shields . | . . . Core Remaining (%) 100 | 100 . . Volleys Fired 73 | 2 61 10 Largest 2 | 2 2 1 Hottest 120 | 40 120 30 Shots Fired 81 | 4 67 10 Gun 10 | 4 6 . Cannon 61 | . 61 . Launcher 10 | . . 10 Special . | . . . Kinetic 35 | 4 31 . Thermal 14 | . 14 . Explosive 10 | . . 10 Electromagnetic 22 | . 22 . Robot Hit Streak 10 | 3 10 5 Robot Miss Streak 4 | . 4 . Penetration Max . | . . . Secondary Targets . | . . . Shots Hit Robots 45 | 3 38 4 Core Hits 47 | 3 17 27 Critical Kills . | . . . Critical Parts Destroyed . | . . . Critical Strikes 1 | . 1 . Blast 1 | . 1 . Melee Attacks . | . . . Impact . | . . . Slashing . | . . . Piercing . | . . . Sneak Attacks . | . . . Combat Hostiles . | . . . Follow-up Attacks . | . . . Damage Inflicted 1721 | 38 831 852 Guns 90 | 38 52 . Cannons 755 | . 755 . Explosions 852 | . . 852 Melee . | . . . Ramming 24 | . 24 . Kinetic 338 | 38 300 . Thermal 86 | . 86 . Explosive 852 | . . 852 Electromagnetic 421 | . 421 . Impact . | . . . Slashing . | . . . Piercing . | . . . Highest Corruption . | . . . Average Corruption . | . . . Corruption Purged . | . . . Corruption Blocked . | . . . Overload Shots . | . . . Overflow Damage 29 | . 5 24 Projectiles 5 | . 5 . Explosions 24 | . . 24 Melee . | . . . Knockbacks 7 | . 7 . Impact . | . . . Kinetic 7 | . 7 . Secondary . | . . . Self-Inflicted Damage 107 | . . 107 Shots 3 | . . 3 Rammed . | . . . Targets Rammed 5 | . 5 . Kicked 5 | . 5 . Crushed . | . . . Highest Temperature 124 | . 124 16 Average Temperature 39 | . 40 10 Received Heat Transfer 188 | . 168 20 Siege Activations . | . . . Martial Activations . | . . . Shielding Activations . | . . . Robots Disrupted . | . . . Combat Hostiles . | . . . Robots Corrupted 2 | . 2 . Combat Hostiles 2 | . 2 . Parts Fried 2 | . 2 . Impact Corruptions . | . . . Robots Melted . | . . . Combat Hostiles . | . . . Parts Melted . | . . . Heat Transferred 185 | . 185 . Parts Sabotaged . | . . . Parts Stolen . | . . . Parts Stripped . | . . . Power Chain Reactions . | . . . Alert | -11 -10 -10 ------- Run | Yrd Mat Min Maximum Alert Level . | . . . Low Security (%) 100 | 100 100 100 Level 1 . | . . . Level 2 . | . . . Level 3 . | . . . Level 4 . | . . . Level 5 . | . . . High Security . | . . . Max Security . | . . . Peak Influence 55 | 10 55 18 Initial . | . . . Average 12 | 6 12 5 Influence Increases 349 | 10 309 30 Destroy 0b10 Robot/C 200 | . 200 . Destroy 0b10 Robot/NC 30 | 10 20 . Destroy Leader 54 | . 54 . Successful Hack 18 | . 18 . Disable Machine 15 | . 15 . Destroy Structure 32 | . 2 30 Influence Decreases 344 | 10 309 25 Time Decay 329 | 10 309 10 Lost Part 15 | . . 15 Squads Dispatched 2 | . 2 . Investigation . | . . . Extermination . | . . . Reinforcement 2 | . 2 . Assault . | . . . Garrison . | . . . Intercept . | . . . Searches Triggered . | . . . Construction Impeded . | . . . Haulers Reinforced . | . . . Active Scanning Responses . | . . . Cargo Convoy Interrupts . | . . . Stealth | -11 -10 -10 --------- Run | Yrd Mat Min Distress Signals 1 | . 1 . Communications Jammed . | . . . Distress Signals . | . . . Times Spotted 40 | . 24 16 Peak Tracking Total 16 | . 3 16 Tactical Retreats . | . . . Traps | -11 -10 -10 ------- Run | Yrd Mat Min Traps Triggered 8 | . 8 . Indirectly . | . . . Trap Hack Attempts . | . . . Triggered . | . . . Disarmed . | . . . Reprogrammed . | . . . Reused . | . . . Traps Extracted . | . . . Installed . | . . . Triggered . | . . . Machines | -11 -10 -10 ---------- Run | Yrd Mat Min Machines Disabled 1 | . 1 . Max in Single Turn 1 | . 1 . Machines Repaired . | . . . Machines Dismantled . | . . . Machines Sabotaged . | . . . Overloaded Fab Kills . | . . . Hacking | -11 -10 -10 --------- Run | Yrd Mat Min Machines Accessed 5 | . 5 . Terminals 5 | . 5 . Fabricators . | . . . Repair Stations . | . . . Recycling Units . | . . . Scanalyzers . | . . . Garrison Access . | . . . Total Hacks 14 | . 14 . Successful 9 | . 9 . Failed 5 | . 5 . Catastrophic 1 | . 1 . Database Lockouts . | . . . Manual 12 | . 12 . Terminals 14 | . 14 . Fabricators . | . . . Repair Stations . | . . . Recycling Units . | . . . Scanalyzers . | . . . Garrison Access . | . . . Terminal Hacks 4 | . 4 . Robot Analysis 3 | . 3 . Zone Layout 1 | . 1 . Fabricator Hacks . | . . . Repair Station Hacks . | . . . Recycling Unit Hacks . | . . . Scanalyzer . | . . . Garrison Access Hacks . | . . . Unauthorized Hacks 5 | . 5 . Terminals 5 | . 5 . Botnet 1 | . 1 . Skim 4 | . 4 . Fabricators . | . . . Repair Stations . | . . . Recycling Units . | . . . Scanalyzers . | . . . Garrison Access . | . . . Data Cores Recovered . | . . . Used . | . . . Hacking Detections 2 | . 2 . Full Trace Events . | . . . Feedback Events . | . . . Feedback Blocked . | . . . Robot Schematics Acquired . | . . . Robots Built . | . . . Authchips . | . . . Time . | . . . Total Robot Build Rating . | . . . Part Schematics Acquired . | . . . Parts Built . | . . . Authchips . | . . . Time . | . . . Total Part Build Rating . | . . . Parts Repaired . | . . . Time . | . . . Parts Recycled . | . . . Recycled Matter . | . . . Retrieved Matter . | . . . Retrieved Components . | . . . Parts Scanalyzed . | . . . Part Schematics Acquired . | . . . Parts Damaged . | . . . Bothacking | -11 -10 -10 ------------ Run | Yrd Mat Min Used RIF Installer . | . . . Robots Hacked . | . . . Non-combat . | . . . Combat . | . . . Robot Hacks Applied . | . . . Relay Couplers Released . | . . . Fabnet Peak Effective % . | . . . Robots Rewired . | . . . Allies Hacked . | . . . Hacks Repelled . | . . . Allies | -11 -10 -10 -------- Run | Yrd Mat Min Total Allies . | . . . Largest Group . | . . . Highest-Rated Group . | . . . Highest-Rated Ally . | . . . Total Orders . | . . . Ally Attacks . | . . . Total Damage . | . . . Kills . | . . . Allies Corrupted . | . . . Allies Melted . | . . . Intel | -11 -10 -10 ------- Run | Yrd Mat Min Active Infowar (turns) 1426 | 11 1384 31 Structural 1279 | . 1248 31 Seismic 147 | 11 136 . Robot Analysis Total 3 | . 3 . Derelict Logs Recovered . | . . . Drone Launches . | . . . Drone Recoveries . | . . . Exploration | -11 -10 -10 ------------- Run | Yrd Mat Min Turns Passed 1457 | 22 1404 31 Spaces Moved 636 | 10 622 4 Core 4 | . 4 . Treads . | . . . Legs 632 | 10 618 4 Wheels . | . . . Hover . | . . . Flight . | . . . Fastest Speed 120 | 120 120 190 Average Speed 182 | 120 183 190 Slowest Speed 400 | 120 400 190 Overloaded Moves . | . . . Propulsion Burnouts . | . . . Robots Hopped . | . . . Potential Cave-ins . | . . . Cave-ins Triggered . | . . . Exploration Rate (%) 33 | 3 91 6 Regions Visited 2 Branch Regions 1 Pre-discovered Areas . | . . . Known Exits Taken . | . . . Unknown Exits Taken 2 | 1 1 . Scrap Searched . | . . . Spaces Dug . | . . . Terrain Destroyed 49 | . . 49 Melee . | . . . Projectile . | . . . AOE 49 | . . 49 Terrain Rammed . | . . . Walls Destroyed . | . . . Machines Disabled . | . . . Actions | -11 -10 -10 --------- Run | Yrd Mat Min Total 847 | 17 812 18 Wait 62 | . 62 . Move 634 | 9 621 4 Hop . | . . . Pick Up 12 | 1 10 1 Fast Attach 24 | 1 23 . Attach 6 | . 4 2 Detach 9 | . 9 . Swap 5 | . 5 . Drop 17 | 4 12 1 Fire 73 | 2 61 10 Melee . | . . . Ram . | . . . Kick 5 | . 5 . Crush . | . . . Escape Stasis . | . . . Rewire . | . . . Trap . | . . . Miscellaneous . | . . . Route ------- -11/Scrapyard -10/Materials (discovered 3 exits: [*Mat x2] / [*Min]) -10/Mines History --------- Turn | Location | Event 10 | -11/Scrapyard | Discovered new exit (range 3) 23 | -11/Scrapyard | Entered Materials 311 | -10/Materials | Build established: Mutant 743 | -10/Materials | Discovered new exit (range 10) 1202 | -10/Materials | Discovered new exit (range 16) 1381 | -10/Materials | Discovered new exit (range 14) 1427 | -10/Materials | Entered Mines 1428 | -10/Mines | Assembled infested the area 1447 | -10/Mines | Core integrity fell below 50% 1457 | -10/Mines | Core integrity fell below 20% 1458 | -10/Mines | Destroyed by as-48604 with Assembled Heavy Rifle Last Messages --------------- 01442_ as-92707 destroyed. 01442_ Core Extractor disabled. 01446_ as-84541 destroyed. 01446_ Critical hit (Destroy). 01446_ Imp. Ion Engine destroyed. 01449_ The unstable cave ceiling collapses. 01450_ Aluminum Leg destroyed. 01451_ The unstable cave ceiling collapses. 01451_ as-46171 destroyed. 01451_ as-35437 destroyed. 01451_ as-67899 destroyed. 01451_ as-94025 destroyed. 01452_ The unstable cave ceiling collapses. 01453_ as-52357 destroyed. 01455_ as-85731 destroyed. 01455_ Aluminum Leg destroyed. 01455_ Destroyed Aluminum Leg. 01457_ The unstable cave ceiling collapses. 01457_ Destroyed Asb. Hover Unit. 01457_ as-63435 destroyed. Map ----- +----------------------------------------------------+ | ??????????????????????????????????? | | ??????????????????????????????????? | | ??????????????????????????????????? | | ??????????????????????????????????? | | ??????????????????????????????????? | | ??????????????????????????????????? | | ??????????????????????????????????? | | ??????????????????????????????????? | | ??????????????????????????????????? | | ??????????????????????????????????? | | ?????????????????????###??????????? | | ????????????????????### ??????????? | | ??????????????????##### ??????????? | | ??????????????????#### ??????????? | | ??????????????????## ??????????? | | ???????????????????? ##????????? | | ????????????????????? ##????????? | | ????????????????????? #????????? | | ?????????????????????? ?????????? | | ?????????????????????# ?????????? | | ??????????????????##### ??????? | | ??????????????????##### ## ????? | | ?????????????????? ####????? | | ???????????????????? # ##????? | | ?????????????### ### # ###???? | | ????????????### # @ ####??? | | ????????????## a ####?? | | ??????????a % a ###?? | | ??????????? a a ##?? | | ??????????? # "" ##?? | | ???????????? ###?? | | ???????????? # #######?? | | ???????????? # # #############??? | | ????????????? ##############??????? | | ?????????????#######??????????????? | | ??????????????????????????????????? | | ??????????????????????????????????? | | ??????????????????????????????????? | | ??????????????????????????????????? | | ??????????????????????????????????? | | ??????????????????????????????????? | | ??????????????????????????????????? | | ??????????????????????????????????? | | ??????????????????????????????????? | | ??????????????????????????????????? | | ??????????????????????????????????? | | ??????????????????????????????????? | | ??????????????????????????????????? | | ??????????????????????????????????? | | ??????????????????????????????????? | +----------------------------------------------------+ Best States ------------- Heat Dissipation 25 Energy Generation 12 Energy Capacity 265 Matter Stores 300 Matter Capacity 300 Sight Range 16 Terrain Scan Density 10 Evasion (%) 55 Item Schematics ----------------- None Robot Schematics ------------------ None Fabricated ------------ Nothing Repaired ---------- Nothing Alien Tech Used ----------------- None Achievements -------------- None Challenges ------------ None Game ------ Seed BottomlessTrapImmobilizer Manual? 0 Play Time 00:11:35 Cumulative 52.0 hours Start 2025.05.22 @ 19:40:20 End 2025.05.22 @ 19:51:25 Sessions 1 Manual Loads 0 Difficulty Rogue Special Mode None Game No. 73 Rogue 73 Adventurer 0 Explorer 0 Win Type - Total 2 Types 2/0/0/0/0/0/0/0/0/0 Lore% 32 Gallery% 33 Achievement% 37 Wizard Run 0 Options --------- Layout 0 ASCII 0 Keyboard 0 Movement Numpad Keybinds 0 Fullscreen 2 Font 24/Tamsyn Map View 76x50 Zoom Use 0% Tactical HUD 1 Map Filters NONE Filters NONE Steam 1 RUN: 7cd2e678-2c64-42b1-bf66-04aa8bef6db1